Cogmind - Beta 10.2 @@@ ROGUE MODE // 2021.07.12 @ 18:42:55 Player: T-900 Result: Self-destructed Performance ------------- Evolutions (1) 500 Regions Visited (2) 400 Robots Destroyed (9) 45 Value Destroyed (161) 161 Prototype IDs (2) 40 Alien Tech Used (0) 0 Bonus (0) 0 TOTAL SCORE: 1146 Bonus ------- None Cogmind --------- Core Integrity 8/400 Matter 440/500 Energy 89/125 System Corruption 0% Temperature Cool (0) Movement Core (200) Ox3 Location -9/Materials Parts ------- > --- POWER (1) -------- Light Ion Engine > --- PROPULSION (4) --- (None) > --- UTILITY (2) ------ Small Storage Unit High-capacity Matter Pod > --- WEAPON (2) ------- (None) > --- INVENTORY (6) ---- (None) Peak State ------------ > --- POWER ------------ Ion Engine > --- PROPULSION ------- Aluminum Leg Aluminum Leg Aluminum Leg Aluminum Leg > --- UTILITY ---------- Small Storage Unit High-capacity Matter Pod > --- WEAPON ----------- EM Pulse Gun Small Laser > --- INVENTORY -------- Light Ion Engine Small Laser Assault Rifle Light Assault Rifle [Rating: 9] Favorites ----------- Power Ion Engine Engine Ion Engine Propulsion Aluminum Leg Leg Aluminum Leg Utility Small Storage Unit Storage Small Storage Unit Weapon Small Laser Energy Gun Small Laser Ballistic Gun Light Assault Rifle Special Weapon Welding Torch Build | -11 -10 -9 ------- Run | Scr Mat Mat Slots Evolved 2 | . . 2 Power . | . . . Propulsion 2 | . . 2 Utility . | . . . Weapon . | . . . Parts Attached 22 | 5 7 10 Power 3 | . 1 2 Engine 3 | . 1 2 Core . | . . . Reactor . | . . . Propulsion 4 | 2 . 2 Treads . | . . . Leg 4 | 2 . 2 Wheel . | . . . Hover . | . . . Flight . | . . . Utility 2 | . 2 . Device . | . . . Storage 2 | . 2 . Processor . | . . . Hackware . | . . . Protection . | . . . Artifact . | . . . Weapon 13 | 3 4 6 Energy Gun 7 | 1 4 2 Energy Cannon . | . . . Ballistic Gun 5 | 2 . 3 Ballistic Cannon . | . . . Launcher . | . . . Special Weapon 1 | . . 1 Impact Weapon . | . . . Slashing Weapon . | . . . Piercing Weapon . | . . . Special Melee Weapon . | . . . Unidentified Prototypes . | . . . Parts Lost 13 | . . 13 Power 2 | . . 2 Propulsion 4 | . . 4 Utility . | . . . Weapon 7 | . . 7 Highest Loss Streak 10 | . . 10 Average Slot Usage (%) 90 | . 99 76 Engine 11 | . 14 9 Leg 29 | . 28 31 Storage 25 | . 28 22 Energy Gun 14 | . 19 8 Ballistic Gun 7 | . 8 5 Naked Turns . | . . . Heaviest Build 16 | 3 16 16 Greatest Support 20 | 3 20 20 Greatest Overweight (x) 4 | . . 4 Average Overweight (x) . | . . . Largest Inventory Capacity 6 | 4 6 6 Average Capacity 5 | 4 5 6 Most Carried 6 | 4 6 5 Average Carried 4 | 3 4 2 Final Capacity 6 | 4 6 6 Final Carried 6 | 4 6 . Class Distribution -------------------- 100% | Mutant Dominant Class ---------------- Mutant | -10/Materials Mutant | -9/Materials Resources | -11 -10 -9 ----------- Run | Scr Mat Mat Matter Collected 524 | 224 296 4 Remotely . | . . . Salvage Created 135 | . 79 56 Parts 11 | . 3 8 Haulers Intercepted . | . . . Recyclers Shooed . | . . . Parts Field Recycled . | . . . Retrieved Matter . | . . . Parts Self-Destructed . | . . . Prevented . | . . . Kills | -11 -10 -9 ------- Run | Scr Mat Mat Combat Hostiles Destroyed 9 | . 2 7 Guns 6 | . 2 4 AOE 3 | . . 3 Classes Destroyed 2 | . 1 1 Swarmer 7 | . . 7 Grunt 2 | . 2 . Best Kill Streak 4 | . 2 4 Combat Bots Only 4 | . 2 4 Max Kills in Single Turn 3 | . 1 3 Gunslinging . | . . . Exploded 3 | . . 3 Melee . | . . . Uniques/NPCs Destroyed . | . . . Combat | -11 -10 -9 -------- Run | Scr Mat Mat Damage Taken 1403 | . 126 1277 Core 431 | . 39 392 Absorbed by Shields . | . . . Core Remaining (%) 92 | 100 84 . Volleys Fired 25 | . 8 17 Largest 2 | . 2 2 Hottest 80 | . 80 80 Shots Fired 44 | . 16 28 Gun 41 | . 16 25 Cannon . | . . . Launcher . | . . . Special 3 | . . 3 Kinetic 15 | . . 15 Thermal 23 | . 16 7 Explosive . | . . . Electromagnetic 6 | . . 6 Robot Hit Streak 7 | . 7 6 Robot Miss Streak 4 | . 2 4 Penetration Max . | . . . Secondary Targets 1 | . . 1 Max Gunslinging Chain 1 | . . 1 Shots Hit Robots 24 | . 10 14 Core Hits 15 | . 5 10 Critical Hits . | . . . Critical Kills . | . . . Critical Parts Destroyed . | . . . Melee Attacks . | . . . Impact . | . . . Slashing . | . . . Piercing . | . . . Sneak Attacks . | . . . Combat Hostiles . | . . . Follow-up Attacks . | . . . Damage Inflicted 707 | . 125 582 Guns 243 | . 125 118 Cannons . | . . . Explosions 458 | . . 458 Melee . | . . . Ramming . | . . . Kinetic 41 | . . 41 Thermal 216 | . 125 91 Explosive 393 | . . 393 Electromagnetic 57 | . . 57 Impact . | . . . Slashing . | . . . Piercing . | . . . Highest Corruption . | . . . Average Corruption . | . . . Corruption Purged . | . . . Overload Shots . | . . . Overflow Damage 93 | . . 93 Projectiles . | . . . Explosions 93 | . . 93 Melee . | . . . Knockbacks . | . . . Impact . | . . . Kinetic . | . . . Secondary . | . . . Self-Inflicted Damage 134 | . . 134 Shots 2 | . . 2 Rammed . | . . . Targets Rammed . | . . . Kicked . | . . . Crushed . | . . . Highest Temperature 195 | . 195 27 Average Temperature 70 | . 101 11 Received Heat Transfer 258 | . 78 180 Siege Activations . | . . . Robots Corrupted . | . . . Combat Hostiles . | . . . Parts Fried . | . . . Impact Corruptions . | . . . Robots Melted . | . . . Combat Hostiles . | . . . Parts Melted 1 | . 1 . Heat Transferred 525 | . 275 250 Parts Sabotaged . | . . . Parts Stolen . | . . . Parts Stripped . | . . . Power Chain Reactions 1 | . . 1 Missiles Intercepted . | . . . Alert | -11 -10 -9 ------- Run | Scr Mat Mat Peak Influence 194 | . 107 194 Initial 44 | . . 44 Average 74 | . 68 92 Maximum Alert Level . | . . . Low Security (%) 100 | 100 100 100 Level 1 . | . . . Level 2 . | . . . Level 3 . | . . . Level 4 . | . . . Level 5 . | . . . High Security . | . . . Max Security . | . . . Squads Dispatched . | . . . Investigation . | . . . Extermination . | . . . Reinforcement . | . . . Assault . | . . . Garrison . | . . . Intercept . | . . . Construction Impeded . | . . . Haulers Reinforced . | . . . Stealth | -11 -10 -9 --------- Run | Scr Mat Mat Distress Signals . | . . . Communications Jammed . | . . . Distress Signals . | . . . Times Spotted 19 | . 4 15 Peak Tracking Total 8 | . 2 8 Tactical Retreats 3 | . 1 2 Traps | -11 -10 -9 ------- Run | Scr Mat Mat Traps Triggered . | . . . Indirectly . | . . . Trap Hack Attempts . | . . . Triggered . | . . . Disarmed . | . . . Reprogrammed . | . . . Reused . | . . . Traps Extracted . | . . . Installed . | . . . Triggered . | . . . Machines | -11 -10 -9 ---------- Run | Scr Mat Mat Machines Disabled 1 | . . 1 Max in Single Turn 1 | . . 1 Machines Sabotaged . | . . . Garrisons Compromised . | . . . Overloaded Fab Kills . | . . . Fab Network Shutdowns . | . . . Hacking | -11 -10 -9 --------- Run | Scr Mat Mat Machines Accessed 5 | . 4 1 Terminals 3 | . 2 1 Fabricators . | . . . Repair Stations 1 | . 1 . Recycling Units 1 | . 1 . Scanalyzers . | . . . Garrison Access . | . . . Total Hacks 13 | . 12 1 Successful 8 | . 7 1 Failed 5 | . 5 . Catastrophic 2 | . 2 . Database Lockouts . | . . . Manual . | . . . Terminals 4 | . 3 1 Fabricators . | . . . Repair Stations 3 | . 3 . Recycling Units 6 | . 6 . Scanalyzers . | . . . Garrison Access . | . . . Terminal Hacks 2 | . 1 1 Record 1 | . . 1 Prototype ID Bank 1 | . 1 . Fabricator Hacks . | . . . Repair Station Hacks 2 | . 2 . Scan Component 1 | . 1 . Repair 1 | . 1 . Recycling Unit Hacks 4 | . 4 . Recycle Component 1 | . 1 . Process 2 | . 2 . Report Inventory 1 | . 1 . Scanalyzer . | . . . Garrison Access Hacks . | . . . Unauthorized Hacks . | . . . Terminals . | . . . Fabricators . | . . . Repair Stations . | . . . Recycling Units . | . . . Scanalyzers . | . . . Garrison Access . | . . . Data Cores Recovered . | . . . Used . | . . . Hacking Detections 3 | . 2 1 Full Trace Events . | . . . Feedback Events . | . . . Feedback Blocked . | . . . Robot Schematics Acquired . | . . . Robots Built . | . . . Matter . | . . . Time . | . . . Total Robot Build Rating . | . . . Part Schematics Acquired . | . . . Parts Built . | . . . Matter . | . . . Time . | . . . Total Part Build Rating . | . . . Parts Repaired 1 | . 1 . Time 13 | . 13 . Parts Recycled 1 | . 1 . Recycled Matter 10 | . 10 . Retrieved Matter . | . . . Retrieved Components . | . . . Parts Scanalyzed . | . . . Part Schematics Acquired . | . . . Parts Damaged . | . . . Bothacking | -11 -10 -9 ------------ Run | Scr Mat Mat Used RIF Installer . | . . . Robots Hacked . | . . . Non-combat . | . . . Combat . | . . . Robot Hacks Applied . | . . . Relay Couplers Released . | . . . Robots Rewired . | . . . Allies Hacked . | . . . Hacks Repelled . | . . . Allies | -11 -10 -9 -------- Run | Scr Mat Mat Total Allies . | . . . Largest Group . | . . . Highest-Rated Group . | . . . Highest-Rated Ally . | . . . Total Orders . | . . . Ally Attacks . | . . . Total Damage . | . . . Kills . | . . . Allies Corrupted . | . . . Allies Melted . | . . . Intel | -11 -10 -9 ------- Run | Scr Mat Mat Robot Analysis Total . | . . . Derelict Logs Recovered . | . . . Drone Launches . | . . . Drone Recoveries . | . . . Exploration | -11 -10 -9 ------------- Run | Scr Mat Mat Turns Passed 597 | 29 339 229 Spaces Moved 388 | 36 223 129 Core 59 | 36 . 23 Treads . | . . . Legs 329 | . 223 106 Wheels . | . . . Hover . | . . . Flight . | . . . Fastest Speed 50 | 50 120 120 Average Speed 116 | 50 120 130 Slowest Speed 250 | 50 120 250 Overloaded Moves . | . . . Propulsion Burnouts . | . . . Robots Hopped . | . . . Cave-ins Triggered . | . . . Exploration Rate (%) 20 | 2 41 19 Regions Visited 2 Branch Regions . Pre-discovered Areas . | . . . Known Exits Taken . | . . . Unknown Exits Taken 2 | 1 1 . Scrap Searched . | . . . Spaces Dug . | . . . Terrain Destroyed 40 | . . 40 Melee . | . . . Projectile . | . . . AOE 40 | . . 40 Terrain Rammed . | . . . Walls Destroyed . | . . . Machines Disabled . | . . . Actions | -11 -10 -9 --------- Run | Scr Mat Mat Total 483 | 44 277 162 Wait 36 | . 33 3 Move 386 | 35 222 129 Hop . | . . . Pick Up 13 | 4 6 3 Fast Attach 5 | 4 1 . Attach 12 | . 3 9 Detach . | . . . Swap 5 | 1 3 1 Drop 1 | . 1 . Fire 25 | . 8 17 Melee . | . . . Ram . | . . . Kick . | . . . Crush . | . . . Escape Stasis . | . . . Rewire . | . . . Trap . | . . . Miscellaneous . | . . . Route ------- -11/Scrapyard -10/Materials -9/Materials History --------- Turn | Location | Event 14 | -11/Scrapyard | Discovered new exit (range 16) 30 | -11/Scrapyard | Entered Materials 205 | -10/Materials | Repaired Sml. Laser 304 | -10/Materials | Build established: Mutant 339 | -10/Materials | Discovered new exit (range 16) 369 | -10/Materials | Entered another Materials area 369 | -9/Materials | Evolved 2 slots: Propulsion x2 499 | -9/Materials | Lost 3 parts (3w) 550 | -9/Materials | Core integrity fell below 50% 572 | -9/Materials | Core integrity fell below 20% 598 | -9/Materials | Self-destructed Last Messages --------------- 00528_ Aluminum Leg destroyed. 00538_ Lgt. Assault Rifle destroyed. 00540_ Acquired EM Shotgun. 00553_ Chain reaction triggered in Lgt. Ion Engine. 00553_ S-10 Pest destroyed. 00553_ Nuclear Reactor explodes. 00553_ S-10 Pest destroyed. 00553_ Assault Rifle destroyed. 00553_ Destroyed Assault Rifle. 00553_ S-10 Pest destroyed. 00553_ Destroyed Lgt. Ion Engine. 00556_ The unstable cave ceiling collapses. 00556_ S-10 Pest destroyed. 00557_ The unstable cave ceiling collapses. 00561_ Acquired 4 matter. 00562_ EM Shotgun destroyed. 00567_ Acquired Lgt. Ion Engine. 00579_ Lgt. Ion Engine destroyed. 00589_ The unstable cave ceiling collapses. 00597_ Welding Torch destroyed. Map ----- +----------------------------------------------------+ | ?????????# #??# ####### #??????????????? | | ????????## #### % # # #########??????? | | ????????# ## # #??????? | | ????????# ## + T #??????? | | ????????# # # #??????? | | ????????# # ####### #??????? | | ????????# # ####?????# #??????? | | ????????## ## #????????# #??????? | | ?????????# #### # # # # #?######## #??????? | | ?????????# # # +### #??????? | | ?????????# # # # #??????? | | ?????????# # # #??????? | | ?????????# # # ########??????? | | ?????????# ^ #!!! # #?????????????? | | ?????????# ^ #!!! # # #?????????????? | | ?????????# #!! ###### ##????????????? | | ?????????# #######+########## ###########??? | | ?????????# % %% #??? | | ?????????# #??? | | ?????????# *% #??? | | ?????????### #######+########## ###+### +??? | | ???????????# #?????# "" ######/####????#?? #??? | | ???????????# #?????# ""S ##! #??? #??????? | | ???????????# #?????# "" ## """ #?? #??????? | | ???????????# #?????# ## """ #? #??????? | | ???????????#/#?????# @ # """ # #??????? | | ??????????? ?????# """ g# # #??????? | | ??????????? ?????# """ g % +??????? | | ??????????? ?????# """ Y# #??????? | | ??????????? ?????# #??????? | | ??????????? ?????# = ##?????????? | | ??????????? ?????# # # #??????????? | | ??????????? ?????############# # ##??????????? | | ??????????? ?????????????# # #???????????? | | ???????????###?????????????#?#### ####???????????? | | ?????????????????????????????????##??????????????? | | ?????????????????????????????????????????????????? | | | | | | | | | | | | | | | | | | | | | | | | | | | +----------------------------------------------------+ Best States ------------- Heat Dissipation 28 Energy Generation 10 Energy Capacity 250 Matter Stores 490 Matter Capacity 500 Sight Range 16 Terrain Scan Density 10 Evasion (%) 50 Item Schematics ----------------- None Robot Schematics ------------------ None Fabricated ------------ Nothing Alien Tech Used ----------------- None Achievements -------------- None Challenges ------------ None Game ------ Seed AnalysisNeutronLance Manual? 0 Play Time 00:13:29 Cumulative 19.5 hours Start 2021.07.12 @ 18:32:04 End 2021.07.12 @ 18:42:55 Sessions 1 Manual Loads 0 Difficulty Rogue Special Mode None Game No. 66 Rogue 66 Adventurer 0 Explorer 0 Win Type - Total 0 Types 0/0/0/0/0/0/0/0/0 Lore% 9 Gallery% 25 Achievement% 18 Wizard Run 0 Options --------- ASCII 0 Keyboard 0 Movement Mouse Keybinds 0 Fullscreen 1 Font 18/SmallcapsGlow Map View 76x50 Tactical HUD 1 Map Filters NONE Filters NONE Steam 1 RUN: 60c3fc78-e01a-48d2-a034-ea68c4236a57